[Event "Fall IM-D Norm Invitational 2022"]
[Site "Charlotte"]
[Date "2022.11.20"]
[Round "6"]
[White "Lee, Alice"]
[Black "Marek, Matyas"]
[Result "0-1"]
[ECO "E11"]
[WhiteElo "2284"]
[BlackElo "2346"]
[Annotator "TA"]
[PlyCount "100"]
[EventDate "2022.11.18"]
[EventType "tourn"]
[EventCountry "USA"]
[SourceTitle "playchess.com"]
[Source "ChessBase"]
[SourceQuality "1"]
[TimeControl "5400+30"]

{[%evp 14,100,24,39,33,27,37,21,50,53,49,50,54,29,79,81,68,58,53,41,28,26,30,16,35,-39,-40,-34,-34,-31,-33,-116,-93,-168,-174,-168,-173,-227,-238,-414,-291,-404,-397,-433,-291,-307,-298,-462,-345,-404,-460,-473,-385,-389,-319,-483,-312,-321,-314,-469,-420,-390,-386,-379,-379,-369,-331,-387,-311,-485,-475,-933,-920,-898,-722,-720,-717,-716,-671,-817,-792,-804,-796,-1234,-1234,-5908,-6111,-4918,-3075]} 1. d4 {[%emt 0:00:01]} Nf6 {[%emt 0:00:36]} 2. c4 {[%emt 0:00:07]} e6 {[%emt 0:00:03]} 3. Nf3 {[%emt 0:00:09]} Bb4+ {[%emt 0:00:04]} 4. Bd2 {[%emt 0:00:06]} c5 {[%emt 0:00:04]} 5. Bxb4 {[%emt 0:00:06]} cxb4 {[%emt 0:00:02]} 6. a3 {[%emt 0:00:10]} bxa3 {[%emt 0:00:20]} 7. Rxa3 {[%emt 0:00:07]} O-O {[%emt 0:00:27]} 8. Nc3 {[%emt 0:01:54]} d6 {[%emt 0:00:33] E11: Bogo-Indian.} 9. e4 {[%emt 0:04:30][%cal Be2e4,Be4e5][%mdl 32] outshines the older 9.e3.} Nc6 {[%emt 0:00:12]} 10. Be2 {[%emt 0:00:26] [#]} a5 $146 {[%emt 0:01:04] The position is equal.} ({Predecessor:} 10... b6 11. O-O Bb7 12. d5 Nb4 13. Nd4 e5 14. Nf5 g6 15. Nh6+ Kg7 16. Qd2 Qe7 {½-½ (61) Banikas,H (2599)-Cordova,E (2592) Chess.com INT 2020}) 11. O-O {[%emt 0:00:40]} Nb4 {[%emt 0:00:59]} 12. e5 {[%emt 0:09:43]} Ne8 {[%emt 0:07:06]} 13. Na2 {[%emt 0:06:43]} Nc6 {[%emt 0:05:23]} (13... Nxa2 $11 {remains equal.} 14. Rxa2 b6) 14. Bd3 {[%emt 0:07:18]} b6 {[%emt 0:09:51]} 15. Qe2 {[%emt 0:13:02]} Bb7 {[%emt 0:01:58]} 16. Qe4 {[%emt 0:04:37][%csl Gd3][%cal Re4h7]} g6 {[%emt 0:00:14]} 17. Qe3 {[%emt 0:06:20]} Ne7 {[%emt 0:06:08]} 18. Ng5 {[%emt 0:03:18]} (18. Nc3 {simplifies} Rc8 19. Rb3 Bxf3 20. Qxf3 Nc6 21. Qe3) 18... h6 {[%emt 0:04:28]} 19. Ne4 {[%emt 0:08:23]} (19. Nh3 $14 Ng7 20. Qxh6) 19... Nf5 $15 {[%emt 0:03:46]} 20. Qf4 {[%emt 0:06:45]} dxe5 {[%emt 0:05:55]} 21. dxe5 {[%emt 0:00:34]} Qd4 {[%emt 0:01:06]} 22. Bb1 {[%emt 0:10:48] White is on the road to losing.} (22. Nf6+ $15 Nxf6 23. Qxd4 Nxd4 24. exf6) 22... Rc8 $36 {[%emt 0:10:00][%mdl 2048] Black is on the roll.} (22... Qxb2 23. Rh3 h5 24. Nec3 $15) 23. Rc3 {[%emt 0:03:13]} (23. Re1 $17) 23... g5 $19 {[%emt 0:03:11]} (23... Rxc4 $2 24. Rxc4 Qxb2 25. Rc2 $18) 24. Qg4 {[%emt 0:00:22][%cal Oh2h4]} Qxe5 {[%emt 0:00:28]} (24... Rxc4 $2 25. Rxc4 Qxe5 26. Rd1 $18) 25. Re1 {[%emt 0:08:49]} (25. Nc1 $142) 25... Ned6 {[%emt 0:07:38][%cal Be8d6,Bd6f5,Bf5g7][%mdl 32]} 26. Rcc1 {[%emt 0:02:27]} (26. b3) 26... Bxe4 {[%emt 0:07:09]} (26... Qxb2 $2 27. Nxd6 Nxd6 28. Red1 $19) (26... Nxc4 27. Nd2 Nfe3 28. Nxc4 Rxc4 29. Qh3 Rxc1 30. Nxc1 Qxb2 31. Nd3 $15) 27. Bxe4 {[%emt 0:00:10]} Qxb2 {[%emt 0:00:30]} (27... Rxc4 $2 28. Rxc4 Nxc4 29. Qe2 $19) 28. Bxf5 {[%emt 0:01:04]} Nxf5 {[%emt 0:07:34]} 29. Nc3 {[%emt 0:00:10]} Rfd8 {[%emt 0:00:12]} 30. g3 {[%emt 0:01:34]} (30. Ne4 $142) 30... Rd3 {[%emt 0:02:01]} 31. Ne4 {[%emt 0:00:55]} Qd4 {[%emt 0:00:49]} 32. Kg2 {[%emt 0:01:02]} Ng7 {[%emt 0:03:19]} ({Much less strong is} 32... Rxc4 33. Rxc4 Qd5 34. Rc7 $18) 33. Qe2 {[%emt 0:00:30]} Rd8 {[%emt 0:00:36]} (33... Rxc4 $2 34. Rxc4 Qxc4 35. Nf6+ Kh8 36. g4 $19) 34. f3 {[%emt 0:00:49]} (34. c5 $142 f5 35. Nd6) 34... f5 {[%emt 0:00:30]} 35. Nf2 {[%emt 0:00:06]} Rd2 {[%emt 0:00:05]} 36. Qf1 {[%emt 0:00:12]} (36. Qxd2 {is a better defense.} Qxd2 37. Rcd1) 36... Qc5 {[%emt 0:09:26]} 37. Re2 {[%emt 0:00:39]} a4 {[%emt 0:01:00][%cal Ba5a4,Ba4a3,Ba3a2][%mdl 32]} 38. Qe1 {[%emt 0:00:24]} Rxe2 {[%emt 0:02:47]} 39. Qxe2 {[%emt 0:00:01]} a3 {[%emt 0:00:11] Hoping for ...b5.} 40. Rc2 {[%emt 0:01:17] Prevents b5.} Qd4 {[%emt 0:00:29]} 41. Rc1 {[%emt 0:00:43]} (41. Ra2 $142 Ra8 42. Qc2) 41... Qd2 {[%emt 0:00:50] Black is clearly winning.} 42. Qf1 {[%emt 0:00:18]} (42. Rc2 $142 Qxe2 43. Rxe2) 42... a2 {[%emt 0:00:20]} 43. Qd1 {[%emt 0:00:50]} Qxd1 {[%emt 0:01:06]} 44. Nxd1 {[%emt 0:00:01][%mdl 4096] Endgame KRN-KRN} Rd2+ {[%emt 0:00:07]} 45. Kf1 {[%emt 0:00:33]} Ne8 {[%emt 0:00:59][%cal Od2c2] White must now prevent ...Rc2!} (45... Rxh2 $2 {perishes.} 46. Nf2 $19) 46. Ke1 {[%emt 0:00:30] [#]} Rc2 {[%emt 0:00:14][%mdl 512]} 47. Ra1 {[%emt 0:00:05]} Nd6 {[%emt 0:00:16]} (47... Rxc4 $2 {is the wrong capture.} 48. Rxa2 Kf7 49. Ra6 $19) 48. Ne3 {[%emt 0:00:08]} Rxh2 {[%emt 0:00:05][%cal Od6c4] Threatens to win with ...Nxc4!} 49. Nf1 {[%emt 0:00:40]} Rb2 {[%emt 0:00:07] ( -> ...Rb1+)} 50. Nd2 {[%emt 0:00:36] [#] Against Rb1+} Nxc4 $1 {[%emt 0:00:07] Weighted Error Value: White=0.87/Black=0.33} 0-1

[Event "Fall IM-D Norm Invitational 2022"]
[Site "Charlotte"]
[Date "2022.11.20"]
[Round "6"]
[White "Eidelman, Gabriel"]
[Black "Liu, Eric"]
[Result "1-0"]
[ECO "D35"]
[WhiteElo "2197"]
[BlackElo "2182"]
[Annotator "TA"]
[PlyCount "123"]
[EventDate "2022.11.18"]
[EventType "tourn"]
[EventCountry "USA"]
[SourceTitle "playchess.com"]
[Source "ChessBase"]
[SourceQuality "1"]
[TimeControl "5400+30"]

{[%evp 12,123,29,31,41,46,34,39,39,31,41,41,41,25,40,13,16,10,13,19,42,47,43,43,43,43,72,33,72,49,58,45,48,41,41,42,54,50,58,64,70,70,74,63,62,43,58,57,61,60,56,47,54,48,64,68,71,40,40,45,33,39,44,21,24,8,8,0,0,0,64,64,82,77,77,89,93,98,251,210,241,223,1253,1205,1239,1248,1206,1183,1175,1144,1363,1312,1537,1473,29982,29983,2979,1876,1947,1874,1829,1720,3257,2187,29986,29986,29988,29989,29989,29990,29992,29993,29993,29993]} 1. d4 {[%emt 0:00:06]} d5 {[%emt 0:00:06]} 2. c4 {[%emt 0:00:09]} e6 {[%emt 0:00:10]} 3. Nc3 {[%emt 0:00:12]} Nf6 {[%emt 0:00:14]} 4. cxd5 {[%emt 0:00:10]} exd5 {[%emt 0:00:09]} 5. Bg5 {[%emt 0:00:10]} c6 {[%emt 0:00:27]} 6. e3 {[%emt 0:00:08]} Qb6 {[%emt 0:01:08] 6...Bd6 is setting a new trend.} 7. Qd2 {[%emt 0:00:47]} Ne4 {[%emt 0:00:27] D35: Queen's Gambit Declined: Exchange Variation.} 8. Nxe4 {[%emt 0:00:09]} dxe4 {[%emt 0:00:02]} 9. Ne2 {[%emt 0:00:22]} Bf5 {[%emt 0:00:11] White is slightly better.} 10. Nc3 {[%emt 0:02:35]} Bd6 {[%emt 0:01:39]} 11. Be2 {[%emt 0:02:29]} Nd7 {[%emt 0:00:50]} 12. Rc1 {[%emt 0:05:32]} (12. d5 {is interesting.} Nc5 13. dxc6 Be5 14. cxb7 Qxb7 15. O-O) 12... O-O {[%emt 0:02:06] [#]} 13. h3 $146 {[%emt 0:03:59]} ({Predecessor:} 13. Bh4 Rfe8 14. Bg3 Bxg3 15. fxg3 Rad8 16. O-O Bg6 17. Na4 Qc7 18. b4 a6 19. Nc5 {1-0 (40) Leitao,R (2515)-Beckemeier,W (2380) Dortmund 1998}) 13... Rae8 {[%emt 0:08:41]} 14. Bh4 {[%emt 0:13:15]} h6 {[%emt 0:01:29]} 15. O-O {[%emt 0:04:19]} g5 {[%emt 0:09:56]} 16. Bg3 {[%emt 0:00:32]} Bxg3 {[%emt 0:00:33]} 17. fxg3 {[%emt 0:00:04]} Bg6 {[%emt 0:00:07]} 18. g4 {[%emt 0:05:20]} Rd8 {[%emt 0:15:20]} 19. Qc2 {[%emt 0:05:14]} Rfe8 {[%emt 0:02:25]} 20. Rf2 {[%emt 0:04:09]} (20. Bc4 {feels hotter.} Kg7 21. Qf2 Qb4 22. Bb3) 20... Qc7 {[%emt 0:08:18]} 21. Na4 {[%emt 0:05:14]} (21. Bc4 {keeps more tension.} Qg3 22. Qe2 Kg7 23. Bb3) 21... Re7 {[%emt 0:06:00]} 22. Bd1 {[%emt 0:12:14]} Qd6 {[%emt 0:01:38]} 23. Qc3 {[%emt 0:05:08]} Nf6 {[%emt 0:01:48]} 24. Bb3 {[%emt 0:01:10]} Nd5 {[%emt 0:05:44]} 25. Bxd5 {[%emt 0:00:19]} Qxd5 {[%emt 0:00:16]} 26. Qa3 {[%emt 0:03:06]} Qd6 {[%emt 0:02:08]} 27. Qxd6 {[%emt 0:08:49]} Rxd6 {[%emt 0:00:04]} 28. Rc5 {[%emt 0:02:37]} b6 {[%emt 0:03:21]} 29. Rc1 {[%emt 0:00:50]} f6 {[%emt 0:04:49]} 30. Rfc2 {[%emt 0:00:03]} Be8 {[%emt 0:00:36]} 31. Nc3 {[%emt 0:00:01]} h5 {[%emt 0:02:52]} 32. gxh5 {[%emt 0:03:11]} Bxh5 {[%emt 0:00:34]} 33. g4 {[%emt 0:00:24]} Be8 {[%emt 0:04:35]} 34. Ne2 {[%emt 0:00:46]} Rh7 {[%emt 0:01:07]} 35. Kg2 {[%emt 0:02:27]} f5 {[%emt 0:00:54]} 36. gxf5 {[%emt 0:01:25]} Bh5 {[%emt 0:02:58]} 37. Ng1 {[%emt 0:00:40]} (37. Nc3 $5 {[%cal Rc3e4]} Bf3+ 38. Kg3 $14) 37... Be8 {[%emt 0:00:46]} 38. Rf2 {[%emt 0:04:00]} Rdh6 {[%emt 0:02:10]} 39. Kg3 {[%emt 0:03:56][%cal Od4d5]} Kf7 {[%emt 0:02:12]} 40. d5 {[%emt 0:01:17]} c5 {[%emt 0:04:13]} (40... cxd5 $11 41. Rc7+ Kf6 42. Rxh7 Rxh7) 41. b4 $1 $14 {[%emt 0:00:17]} cxb4 {[%emt 0:00:26]} 42. Rc4 {[%emt 0:00:02][%csl LRb4,LRe4]} Rh4 {[%emt 0:01:08]} 43. f6 {[%emt 0:01:32]} ({Don't play} 43. Rxb4 Kf6 $11) 43... Kg6 {[%emt 0:01:41]} 44. Rc8 {[%emt 0:00:45] White is more active.} ({Much worse is} 44. Rxb4 Bd7 $15) 44... Bf7 {[%emt 0:02:54] [#] Black cannot hold the game after this.} (44... Bb5 $16) 45. d6 $1 $18 {[%emt 0:00:11] Black must now prevent d7.} Be6 {[%emt 0:00:16] [#]} 46. Re8 {[%emt 0:00:54]} Bf7 {[%emt 0:01:41]} (46... Bd7 47. f7 Rxf7 48. Rxf7 Bxe8) 47. d7 {[%emt 0:00:42]} Rh8 {[%emt 0:00:46]} 48. d8=Q {[%emt 0:00:05]} Rxe8 {[%emt 0:00:04]} 49. Qd7 {[%emt 0:00:28]} Re6 {[%emt 0:00:37]} 50. Qxa7 {[%emt 0:00:15]} Rh8 {[%emt 0:00:02]} 51. Ne2 {[%emt 0:00:28]} Rc6 {[%emt 0:01:28]} 52. Qd7 {[%emt 0:01:18]} Rc2 {[%emt 0:00:49]} 53. Qf5+ {[%emt 0:00:22]} Kh6 {[%emt 0:00:06]} 54. Qxe4 {[%emt 0:00:20]} Rxa2 {[%emt 0:00:16]} 55. Qxb4 {[%emt 0:00:12]} Re8 {[%emt 0:01:18]} 56. Qxb6 {[%emt 0:00:16]} Ra4 {[%emt 0:00:38]} 57. Nc3 {[%emt 0:01:00]} Rc4 {[%emt 0:00:08]} 58. Nb5 {[%emt 0:00:43] White mates.} Rce4 {[%emt 0:01:21]} 59. Nd6 {[%emt 0:00:21][%csl LRe4,LRe8,LRf7]} Rxe3+ {[%emt 0:00:05]} 60. Kh2 {[%emt 0:00:05]} R3e6 {[%emt 0:00:39]} 61. Nxf7+ {[%emt 0:00:10]} Kg6 {[%emt 0:00:03] [#]} 62. Ne5+ $1 {[%emt 0:00:17] Weighted Error Value: White=0.06 (flawless) /Black=0.44} 1-0

[Event "Fall IM-D Norm Invitational 2022"]
[Site "Charlotte"]
[Date "2022.11.20"]
[Round "6"]
[White "Amburgy, Ryan"]
[Black "Petenyi, Tamas"]
[Result "1/2-1/2"]
[ECO "E12"]
[WhiteElo "2175"]
[BlackElo "2410"]
[Annotator "TA"]
[PlyCount "39"]
[EventDate "2022.11.18"]
[EventType "tourn"]
[EventCountry "USA"]
[SourceTitle "playchess.com"]
[Source "ChessBase"]
[SourceQuality "1"]
[TimeControl "5400+30"]

{[%evp 18,22,3,16,5,8,8]} 1. d4 {[%emt 0:00:01]} Nf6 {[%emt 0:04:36]} 2. c4 {[%emt 0:00:08]} e6 {[%emt 0:00:19]} 3. Nf3 {[%emt 0:00:25]} b6 {[%emt 0:01:37]} 4. a3 {[%emt 0:00:20]} Bb7 {[%emt 0:02:01]} 5. Nc3 {[%emt 0:00:13]} d5 {[%emt 0:02:33]} 6. Bg5 {[%emt 0:00:14]} Nbd7 {[%emt 0:01:49]} 7. cxd5 {[%emt 0:01:52]} exd5 {[%emt 0:00:08]} 8. g3 {[%emt 0:03:00]} Be7 {[%emt 0:03:59] is the legacy move (8...a6).} 9. Bg2 {[%emt 0:01:16]} O-O {[%emt 0:01:39]} 10. O-O {[%emt 0:00:15]} Ne4 {[%emt 0:04:00] E12: Queen's Indian: Unusual White 4th moves, 4 a3, 4 Nc3 Bb7 5 a3 and 4 Nc3 Bb7 .} 11. Bxe7 {[%emt 0:00:25]} Qxe7 {[%emt 0:00:05] [#] An uneventful encounter.} {Predecessor:} 12. Rc1 $146 f5 13. b4 c6 14. Ne1 Rac8 15. Nd3 Rfe8 16. Re1 Ba6 17. e3 Qf6 18. f4 Bxd3 19. Qxd3 Nxc3 20. Rxc3 {0-1 (38) Schmekel,F (2106)-Herbrig,A (2277) Wuerzburg 2018} 1/2-1/2

[Event "Fall IM-D Norm Invitational 2022"]
[Site "Charlotte"]
[Date "2022.11.20"]
[Round "6"]
[White "Willy, Stephen"]
[Black "Estrada Nieto, Julian"]
[Result "0-1"]
[ECO "C50"]
[WhiteElo "2159"]
[BlackElo "2241"]
[Annotator "TA"]
[PlyCount "60"]
[EventDate "2022.11.18"]
[EventType "tourn"]
[EventCountry "USA"]
[SourceTitle "playchess.com"]
[Source "ChessBase"]
[SourceQuality "1"]
[TimeControl "5400+30"]

{[%evp 10,60,25,0,12,8,16,0,112,107,122,127,108,103,104,100,106,101,109,95,149,152,148,93,108,103,101,0,0,-4,0,0,0,-13,-9,-164,-176,-245,-214,-300,-239,-242,-253,-428,-312,-638,-652,-645,-640,-685,-684,-844,-739]} 1. e4 {[%emt 0:00:02]} e5 {[%emt 0:01:54]} 2. Nf3 {[%emt 0:00:05]} Nc6 {[%emt 0:00:05]} 3. Bc4 {[%emt 0:00:05]} Bc5 {[%emt 0:00:05]} 4. c3 {[%emt 0:00:06]} Nf6 5. O-O {[%emt 0:00:15]} d6 {[%emt 0:06:38]} 6. d4 {[%emt 0:00:11]} Bb6 {[%emt 0:01:14] C50: Hungarian Defence and Giuoco Pianissimo.} 7. h3 {[%emt 0:02:25]} O-O {[%emt 0:08:17]} 8. a4 {[%emt 0:02:43] [#]} h6 $146 {[%emt 0:06:43]} ({Much less strong is} 8... Nxe4 9. Bd5 $16) (8... a5 $11) ({Predecessor:} 8... exd4 9. cxd4 Nxe4 10. Bd5 Bf5 11. Bxc6 bxc6 12. a5 c5 13. Re1 Re8 14. axb6 axb6 15. Rxa8 Qxa8 16. dxc5 bxc5 {1-0 (43) Lipsits,S (1549)-Correa de Almeida,C (1545) LSS email 2016}) 9. d5 $16 {[%emt 0:00:36]} Na5 {[%emt 0:00:26]} 10. Bd3 {[%emt 0:00:40] And now b4 would win.} c6 {[%emt 0:01:01]} 11. c4 {[%emt 0:11:46] Hoping for b4.} c5 {[%emt 0:03:28]} 12. Nc3 {[%emt 0:01:54]} a6 {[%emt 0:02:45]} 13. Nh2 {[%emt 0:02:23]} Bc7 {[%emt 0:30:18]} 14. f4 {[%emt 0:01:47][%cal Bf2f4,Bf4f5][%mdl 32]} b6 {[%emt 0:00:16] [#]} ({Better is} 14... exf4 15. Bxf4 Qe7) 15. f5 $1 {[%emt 0:01:11]} Bd7 {[%emt 0:02:53][%cal Ob6b5] [#]} 16. g4 {[%emt 0:03:14]} (16. b3 $142 $1) 16... Nh7 {[%emt 0:02:15][%cal Ob6b5]} 17. Nf3 {[%emt 0:02:14]} b5 {[%emt 0:06:18]} 18. b3 {[%emt 0:14:17]} (18. axb5 $16 axb5 19. cxb5 (19. Nxb5 Bxb5 20. cxb5 c4 $16)) 18... bxc4 $11 {[%emt 0:00:19]} 19. Bxc4 {[%emt 0:01:30]} Nxc4 {[%emt 0:00:34]} 20. bxc4 {[%emt 0:00:17]} Rb8 {[%emt 0:00:44]} 21. h4 {[%emt 0:01:24]} Ba5 {[%emt 0:01:59]} 22. Bd2 {[%emt 0:07:07]} (22. Ra3 $11 {and White is okay.}) 22... Nf6 $19 {[%emt 0:06:47]} 23. g5 {[%emt 0:05:44]} (23. Nh2 {was called for.}) 23... Bxc3 {[%emt 0:00:22] This bishop pair is nice.} 24. gxf6 {[%emt 0:00:11]} (24. Bxc3 $142 Nxe4 25. Qe1 Nxc3 26. Qxc3) 24... Bxd2 {[%emt 0:02:15]} 25. Qxd2 {[%emt 0:07:03]} Qxf6 {[%emt 0:00:06]} 26. Qa5 $2 {[%emt 0:00:45]} (26. a5 {was necessary.}) 26... Rb2 {[%emt 0:03:30]} 27. Rf2 $2 {[%emt 0:02:42]} (27. Rab1 Rc2 28. Qe1 (28. Qxa6 $2 Bxf5 29. Rf2 Bxe4 $19)) 27... Rxf2 {[%emt 0:00:14] Black is clearly winning.} 28. Kxf2 {[%emt 0:00:13] [#]} Bxf5 $1 {[%emt 0:00:15][%mdl 512]} 29. exf5 {[%emt 0:00:56]} (29. Qe1 Bg4) 29... e4 {[%emt 0:00:12][%cal Be5e4,Be4f3][%mdl 96] Discovered Attack} 30. Re1 {[%emt 0:04:25]} exf3 {[%emt 0:00:25] Black used his chance.  Weighted Error Value: White=0.59/Black=0.16 (very precise)} 0-1

[Event "Fall IM-D Norm Invitational 2022"]
[Site "Charlotte"]
[Date "2022.11.20"]
[Round "6"]
[White "De La Colina, Nicolas"]
[Black "Malicka, Maria"]
[Result "1/2-1/2"]
[ECO "A15"]
[WhiteElo "2123"]
[BlackElo "2275"]
[Annotator "TA"]
[PlyCount "74"]
[EventDate "2022.11.18"]
[EventType "tourn"]
[EventCountry "USA"]
[SourceTitle "playchess.com"]
[Source "ChessBase"]
[SourceQuality "1"]
[TimeControl "5400+30"]

{[%evp 20,74,-12,-25,0,0,-14,-30,2,0,6,6,9,14,4,0,4,4,4,10,6,-9,0,0,-2,0,-7,-3,0,0,4,0,0,-8,-6,-15,-18,-21,0,0,-8,-41,-10,-35,0,-55,-36,-55,-55,-55,-54,-55,-55,-55,-15,-43,-43]} 1. Nf3 {[%emt 0:02:14]} Nf6 {[%emt 0:00:08]} 2. c4 {[%emt 0:01:07]} c5 {[%emt 0:01:15]} 3. g3 {[%emt 0:02:48]} d5 {[%emt 0:00:09]} 4. cxd5 {[%emt 0:00:38]} Nxd5 {[%emt 0:00:03]} 5. Bg2 {[%emt 0:00:43]} Nc6 {[%emt 0:00:11]} 6. Nc3 {[%emt 0:00:38]} Nc7 {[%emt 0:00:11]} 7. O-O {[%emt 0:01:29]} e5 {[%emt 0:00:40]} 8. d3 {[%emt 0:02:11]} Be7 {[%emt 0:00:21]} 9. b3 {[%emt 0:06:13]} O-O {[%emt 0:00:53]} 10. Bb2 {[%emt 0:00:04]} f6 {[%emt 0:08:57]} 11. Rc1 {[%emt 0:02:11]} Bd7 {[%emt 0:04:48] A34: Symmetrical English: 2 Nc3, lines with ...d5.} 12. Qd2 {[%emt 0:03:51]} Rc8 {[%emt 0:01:20]} 13. Rfd1 {[%emt 0:02:17]} b6 {[%emt 0:05:37] [#] Black has an edge.} 14. e3 $146 {[%emt 0:03:18]} ({Predecessor:} 14. Qe1 Be6 15. Nd2 Nd5 16. Nxd5 Bxd5 17. Bxd5+ Qxd5 18. Qf1 Rfd8 19. Qg2 Qxg2+ 20. Kxg2 f5 21. Nc4 Bf6 22. Bc3 Kf7 23. h4 Rd7 24. Rd2 Rcd8 25. Rcd1 {½-½ (25) Snajdr,T (2019)-Hruby,V (1871) Znojmo 2006}) 14... Bg4 {[%emt 0:10:26][%cal Bd7g4,Bg4h5,Bh5f7][%mdl 32]} 15. h3 {[%emt 0:03:34]} Bh5 {[%emt 0:00:07]} 16. g4 {[%emt 0:11:14]} Bf7 {[%emt 0:02:36]} 17. Nh4 {[%emt 0:01:08][%cal Bf3h4,Bh4f5,Bf5g3,Bg3e4][%mdl 32]} Nd5 {[%emt 0:02:02]} 18. Nf5 {[%emt 0:01:25] And now d4 would win.} Nxc3 {[%emt 0:02:59]} (18... Re8 {with more complications.} 19. d4 exd4 20. exd4 cxd4 21. Nxd5 Bxd5 22. Bxd5+ Qxd5 23. Bxd4 Bb4) 19. Bxc3 {[%emt 0:01:33] Threatens to win with d4.} Bd5 {[%emt 0:00:06]} 20. Qe2 {[%emt 0:06:35]} Bxg2 {[%emt 0:01:19]} 21. Kxg2 {[%emt 0:00:01]} g6 {[%emt 0:03:17] Prevents d4.} (21... Qd5+ {is more complex.} 22. Qf3 Rfd8 23. h4 Bf8) 22. Ng3 {[%emt 0:00:28]} Qd5+ {[%emt 0:02:42]} 23. Qf3 {[%emt 0:01:03]} Rcd8 {[%emt 0:00:42]} 24. Rd2 {[%emt 0:02:35]} Rd7 {[%emt 0:07:22]} 25. Rcd1 {[%emt 0:00:52]} Rfd8 {[%emt 0:03:41]} 26. Ne4 {[%emt 0:05:56]} Qe6 {[%emt 0:00:17]} 27. Ng3 {[%emt 0:02:09]} a5 {[%emt 0:01:06]} 28. Qe4 {[%emt 0:01:53]} Qd5 {[%emt 0:01:15]} (28... Kf7 {is interesting.} 29. f4 exf4 30. Qxf4 Bd6) 29. Qxd5+ {[%emt 0:06:58]} Rxd5 {[%emt 0:00:13]} 30. Ne2 {[%emt 0:00:51]} Kf7 {[%emt 0:03:00]} 31. f4 {[%emt 0:01:33]} Ke6 {[%emt 0:06:29]} 32. fxe5 {[%emt 0:04:42]} (32. a4 $11) 32... fxe5 $15 {[%emt 0:00:05] [#] ...Bg5 is the strong threat.} 33. Ng3 {[%emt 0:00:28]} Nb4 {[%emt 0:08:39]} 34. Bxb4 {[%emt 0:02:51]} axb4 {[%emt 0:00:03]} 35. Kf3 {[%emt 0:00:24]} R5d7 {[%emt 0:00:44]} 36. Ne4 {[%emt 0:04:24][%cal Oh3h4]} Ra7 {[%emt 0:02:53] Prevents h4.} 37. Rc2 {[%emt 0:00:17]} Rda8 {[%emt 0:00:28] Weighted Error Value: White=0.09 (flawless) /Black=0.08 (flawless)} 1/2-1/2